[Event "Early-Titled-Tuesday-Blitz-September-12-2023"]
[Site "Chess.com"]
[Date "2023.09.12"]
[Round "7"]
[White "Mariia89"]
[Black "CraiggoryC"]
[Result "0-1"]
[WhiteElo "1989"]
[BlackElo "2231"]
[TimeControl "180+1"]
[EndTime "9:16:30 PDT"]
[Termination "CraiggoryC won by resignation"]

1. d4 {[%clk 0:02:24.4]} 1... e6 {[%clk 0:02:59.5]} 2. Nf3 {[%clk 0:02:18.7]}
2... Nf6 {[%clk 0:02:59.8]} 3. Bg5 {[%clk 0:02:15.8]} 3... Be7 {[%clk
0:02:59.3]} 4. e3 {[%clk 0:02:01]} 4... b6 {[%clk 0:02:57]} 5. Bd3 {[%clk
0:02:00.5]} 5... Bb7 {[%clk 0:02:57.6]} 6. c3 {[%clk 0:02:00.5]} 6... c5 {[%clk
0:02:53.9]} 7. Nbd2 {[%clk 0:02:01.4]} 7... cxd4 {[%clk 0:02:52.6]} 8. exd4
{[%clk 0:02:01.9]} 8... h6 {[%clk 0:02:48.8]} 9. Bh4 {[%clk 0:02:01]} 9... O-O
{[%clk 0:02:46.7]} 10. Qe2 {[%clk 0:02:00.2]} 10... Nd5 {[%clk 0:02:46.7]} 11.
Bg3 {[%clk 0:01:59.8]} 11... d6 {[%clk 0:02:39.4]} 12. Kf1 {[%clk 0:01:59.4]}
12... Nc6 {[%clk 0:02:38.6]} 13. Qe4 {[%clk 0:01:51.1]} 13... Nf6 {[%clk
0:02:37.7]} 14. Qe2 {[%clk 0:01:50]} 14... a6 {[%clk 0:02:35.9]} 15. h3 {[%clk
0:01:49.8]} 15... b5 {[%clk 0:02:33.2]} 16. a3 {[%clk 0:01:48.9]} 16... Na5
{[%clk 0:02:28.8]} 17. Bf4 {[%clk 0:01:42.9]} 17... Rc8 {[%clk 0:02:20.4]} 18.
g4 {[%clk 0:01:43.8]} 18... Nd5 {[%clk 0:02:05.2]} 19. Be3 {[%clk 0:01:37.8]}
19... Nc4 {[%clk 0:01:31.5]} 20. Nxc4 {[%clk 0:01:32.6]} 20... bxc4 {[%clk
0:01:30.9]} 21. Bxc4 {[%clk 0:01:30.8]} 21... Nxe3+ {[%clk 0:01:31]} 22. fxe3
{[%clk 0:01:26.7]} 22... Bxf3 {[%clk 0:01:30.6]} 23. Qxf3 {[%clk 0:01:24.6]}
23... Rxc4 {[%clk 0:01:30.6]} 24. Kg2 {[%clk 0:01:05.3]} 24... Qa8 {[%clk
0:01:26.6]} 25. Rhf1 {[%clk 0:00:45.6]} 25... Qxf3+ {[%clk 0:01:25.5]} 26. Rxf3
{[%clk 0:00:44]} 26... Rb8 {[%clk 0:01:23.6]} 27. Rf2 {[%clk 0:00:36.6]} 27...
Rc7 {[%clk 0:01:21.6]} 28. Rb1 {[%clk 0:00:32.5]} 28... Rxc3 {[%clk 0:01:18.2]}
0-1

[Event "Early-Titled-Tuesday-Blitz-September-12-2023"]
[Site "Chess.com"]
[Date "2023.09.12"]
[Round "7"]
[White "kidagent"]
[Black "Gazaman_Empire"]
[Result "1-0"]
[WhiteElo "2203"]
[BlackElo "1992"]
[TimeControl "180+1"]
[EndTime "9:16:37 PDT"]
[Termination "kidagent won on time"]

1. e4 {[%clk 0:02:48.3]} 1... c6 {[%clk 0:00:28.6]} 2. d4 {[%clk 0:02:17.8]}
2... d5 {[%clk 0:00:29.3]} 3. Nc3 {[%clk 0:02:16.6]} 3... dxe4 {[%clk
0:00:29.3]} 4. Nxe4 {[%clk 0:02:17.5]} 4... Nd7 {[%clk 0:00:29]} 5. Nf3 {[%clk
0:02:16.5]} 5... Ngf6 {[%clk 0:00:29.5]} 6. Ng3 {[%clk 0:02:15]} 6... e6 {[%clk
0:00:29.1]} 7. Bd3 {[%clk 0:02:12.9]} 7... c5 {[%clk 0:00:29.5]} 8. c3 {[%clk
0:02:09.3]} 8... b6 {[%clk 0:00:26.5]} 9. O-O {[%clk 0:02:08.4]} 9... Bb7 {[%clk
0:00:27.4]} 10. Bg5 {[%clk 0:02:08.3]} 10... Be7 {[%clk 0:00:27.3]} 11. Re1
{[%clk 0:02:08.5]} 11... O-O {[%clk 0:00:27.4]} 12. Qe2 {[%clk 0:02:00.7]} 12...
h6 {[%clk 0:00:27.3]} 13. Bf4 {[%clk 0:01:55.1]} 13... cxd4 {[%clk 0:00:27.4]}
14. cxd4 {[%clk 0:01:54.6]} 14... Rc8 {[%clk 0:00:26.8]} 15. Rad1 {[%clk
0:01:54.5]} 15... Nd5 {[%clk 0:00:17.9]} 16. Be5 {[%clk 0:01:45]} 16... N7f6
{[%clk 0:00:11.2]} 17. Bb1 {[%clk 0:01:43.9]} 17... Bb4 {[%clk 0:00:10.5]} 18.
Rf1 {[%clk 0:01:35.2]} 18... Nc7 {[%clk 0:00:08.1]} 19. a3 {[%clk 0:01:34.4]}
19... Bd6 {[%clk 0:00:02]} 20. Rfe1 {[%clk 0:01:33.8]} 20... Ba6 {[%clk
0:00:01.4]} 21. Qd2 {[%clk 0:01:22.2]} 21... Ncd5 {[%clk 0:00:01.4]} 22. Bxd6
{[%clk 0:01:13.8]} 1-0

[Event "Early-Titled-Tuesday-Blitz-September-12-2023"]
[Site "Chess.com"]
[Date "2023.09.12"]
[Round "7"]
[White "falzehope0"]
[Black "inagreV"]
[Result "0-1"]
[WhiteElo "2428"]
[BlackElo "2274"]
[TimeControl "180+1"]
[EndTime "9:16:41 PDT"]
[Termination "inagreV won by resignation"]

1. d4 {[%clk 0:03:00.9]} 1... Nf6 {[%clk 0:02:58.9]} 2. e3 {[%clk 0:02:58.7]}
2... d5 {[%clk 0:02:58.1]} 3. Bd3 {[%clk 0:02:58.8]} 3... c5 {[%clk 0:02:57.7]}
4. c3 {[%clk 0:02:58.7]} 4... Nc6 {[%clk 0:02:56.7]} 5. f4 {[%clk 0:02:58.8]}
5... g6 {[%clk 0:02:54]} 6. Nf3 {[%clk 0:02:50.7]} 6... Bf5 {[%clk 0:02:52.9]}
7. O-O {[%clk 0:02:49.9]} 7... Bg7 {[%clk 0:02:52]} 8. Ne5 {[%clk 0:02:48.2]}
8... Bxd3 {[%clk 0:02:51.9]} 9. Qxd3 {[%clk 0:02:47.8]} 9... Qc7 {[%clk
0:02:50.8]} 10. Nd2 {[%clk 0:02:47.3]} 10... O-O {[%clk 0:02:50.4]} 11. b3
{[%clk 0:02:43.6]} 11... cxd4 {[%clk 0:02:49.7]} 12. exd4 {[%clk 0:02:43.3]}
12... a6 {[%clk 0:02:41.7]} 13. Bb2 {[%clk 0:02:36.7]} 13... b5 {[%clk
0:02:40.5]} 14. Kh1 {[%clk 0:02:26.4]} 14... e6 {[%clk 0:02:31.9]} 15. Ba3
{[%clk 0:02:24.2]} 15... Rfc8 {[%clk 0:02:30.2]} 16. Bc5 {[%clk 0:02:23.2]}
16... Bf8 {[%clk 0:02:29.4]} 17. b4 {[%clk 0:02:23]} 17... Bxc5 {[%clk 0:02:21]}
18. bxc5 {[%clk 0:02:19.6]} 18... Kg7 {[%clk 0:02:16.2]} 19. a4 {[%clk
0:02:15.6]} 19... b4 {[%clk 0:02:13.6]} 20. cxb4 {[%clk 0:02:08.4]} 20... Nxb4
{[%clk 0:02:13.6]} 21. Qc3 {[%clk 0:01:57]} 21... a5 {[%clk 0:02:12.7]} 22. Rf3
{[%clk 0:01:48.4]} 22... Rab8 {[%clk 0:02:08.4]} 23. h3 {[%clk 0:01:41.4]} 23...
h5 {[%clk 0:02:03.5]} 24. g4 {[%clk 0:01:38.8]} 24... hxg4 {[%clk 0:02:02.1]}
25. hxg4 {[%clk 0:01:38.6]} 25... Rh8+ {[%clk 0:02:02.7]} 26. Kg2 {[%clk
0:01:38.3]} 26... Ne4 {[%clk 0:01:59.3]} 27. Nxe4 {[%clk 0:01:33.3]} 27... dxe4
{[%clk 0:02:00.2]} 28. Rf2 {[%clk 0:01:02.9]} 28... Nd5 {[%clk 0:02:00.1]} 29.
Qg3 {[%clk 0:00:45]} 29... e3 {[%clk 0:01:52.8]} 30. Rc2 {[%clk 0:00:41.9]}
30... Rb4 {[%clk 0:01:45.1]} 31. f5 {[%clk 0:00:26.9]} 31... Rxd4 {[%clk
0:01:39.8]} 32. fxe6 {[%clk 0:00:20.7]} 32... Nf4+ {[%clk 0:01:35.4]} 33. Kg1
{[%clk 0:00:15.3]} 33... Qxe5 {[%clk 0:01:34.2]} 34. c6 {[%clk 0:00:14.8]} 34...
Ne2+ {[%clk 0:01:33.6]} 35. Rxe2 {[%clk 0:00:14.3]} 35... Qxg3+ {[%clk
0:01:33.5]} 36. Rg2 {[%clk 0:00:15.2]} 36... Qf3 {[%clk 0:01:27.6]} 37. Rf1
{[%clk 0:00:14]} 37... Rd1 {[%clk 0:01:27.2]} 0-1

[Event "Early-Titled-Tuesday-Blitz-September-12-2023"]
[Site "Chess.com"]
[Date "2023.09.12"]
[Round "7"]
[White "supereagles1201"]
[Black "vladgoncharov"]
[Result "0-1"]
[WhiteElo "2389"]
[BlackElo "2551"]
[TimeControl "180+1"]
[EndTime "9:16:42 PDT"]
[Termination "vladgoncharov won by resignation"]

1. c4 {[%clk 0:03:00.9]} 1... Nf6 {[%clk 0:02:59]} 2. g3 {[%clk 0:03:00.4]} 2...
c5 {[%clk 0:02:58.6]} 3. Bg2 {[%clk 0:02:59.1]} 3... Nc6 {[%clk 0:02:58.9]} 4.
Nf3 {[%clk 0:02:58.5]} 4... d6 {[%clk 0:02:57.3]} 5. O-O {[%clk 0:02:57.7]} 5...
g6 {[%clk 0:02:56.6]} 6. Nc3 {[%clk 0:02:56.5]} 6... Bg7 {[%clk 0:02:55.7]} 7.
d4 {[%clk 0:02:57]} 7... cxd4 {[%clk 0:02:55.7]} 8. Nxd4 {[%clk 0:02:56.4]} 8...
Bd7 {[%clk 0:02:55.7]} 9. Nc2 {[%clk 0:02:55]} 9... O-O {[%clk 0:02:54.4]} 10.
e4 {[%clk 0:02:52.4]} 10... Qa5 {[%clk 0:02:52.3]} 11. h3 {[%clk 0:02:50.6]}
11... Rfc8 {[%clk 0:02:47]} 12. Bd2 {[%clk 0:02:44.9]} 12... Qd8 {[%clk
0:02:46.2]} 13. b3 {[%clk 0:02:42.4]} 13... a6 {[%clk 0:02:45]} 14. Qe2 {[%clk
0:02:35.7]} 14... Rab8 {[%clk 0:02:43.1]} 15. a4 {[%clk 0:02:34.7]} 15... Ne8
{[%clk 0:02:38.8]} 16. Rab1 {[%clk 0:02:32.4]} 16... Nc7 {[%clk 0:02:37.1]} 17.
b4 {[%clk 0:02:11.6]} 17... Ne6 {[%clk 0:02:31.2]} 18. Nd5 {[%clk 0:02:04.9]}
18... Ncd4 {[%clk 0:02:14.8]} 19. Nxd4 {[%clk 0:02:04.5]} 19... Nxd4 {[%clk
0:02:14.5]} 20. Qd3 {[%clk 0:02:05.1]} 20... Bxa4 {[%clk 0:02:13.8]} 21. Rfc1
{[%clk 0:01:50.7]} 21... b5 {[%clk 0:01:36.2]} 22. c5 {[%clk 0:01:46.9]} 22...
dxc5 {[%clk 0:01:27.7]} 23. Rxc5 {[%clk 0:01:42.4]} 23... Rxc5 {[%clk
0:01:25.9]} 24. bxc5 {[%clk 0:01:42.8]} 24... Bc2 {[%clk 0:01:26.1]} 25. Qf1
{[%clk 0:01:38.9]} 25... Bxb1 {[%clk 0:01:25.8]} 26. Qxb1 {[%clk 0:01:39.4]}
26... e6 {[%clk 0:01:20.7]} 27. Bf4 {[%clk 0:01:28.1]} 27... Ne2+ {[%clk
0:01:15.3]} 28. Kh2 {[%clk 0:01:27.5]} 28... Nxf4 {[%clk 0:01:15.4]} 29. Nxf4
{[%clk 0:01:28]} 29... Rc8 {[%clk 0:01:15.1]} 30. Nd3 {[%clk 0:01:18.4]} 30...
Bf8 {[%clk 0:01:12.5]} 31. Nb4 {[%clk 0:00:48.3]} 31... Bxc5 {[%clk 0:01:07.8]}
32. Nxa6 {[%clk 0:00:48]} 32... Bxf2 {[%clk 0:01:03.1]} 33. Qxb5 {[%clk
0:00:47.6]} 33... Rc3 {[%clk 0:01:01.3]} 34. Qb8 {[%clk 0:00:40.3]} 34... Qxb8
{[%clk 0:00:59.6]} 35. Nxb8 {[%clk 0:00:41.2]} 35... Bxg3+ {[%clk 0:00:59.9]}
36. Kg1 {[%clk 0:00:39.8]} 36... Bxb8 {[%clk 0:01:00.2]} 0-1

[Event "Early-Titled-Tuesday-Blitz-September-12-2023"]
[Site "Chess.com"]
[Date "2023.09.12"]
[Round "7"]
[White "djano"]
[Black "Zkid"]
[Result "0-1"]
[WhiteElo "2640"]
[BlackElo "2888"]
[TimeControl "180+1"]
[EndTime "9:16:45 PDT"]
[Termination "Zkid won by resignation"]

1. e4 {[%clk 0:03:00.9]} 1... e6 {[%clk 0:02:58.9]} 2. d4 {[%clk 0:02:59.9]}
2... d5 {[%clk 0:02:59.5]} 3. Bd3 {[%clk 0:03:00.6]} 3... dxe4 {[%clk
0:02:59.2]} 4. Bxe4 {[%clk 0:03:01.5]} 4... Nf6 {[%clk 0:02:59.7]} 5. Bf3 {[%clk
0:03:02.2]} 5... c5 {[%clk 0:03:00.3]} 6. Ne2 {[%clk 0:03:02.5]} 6... Nc6 {[%clk
0:03:01]} 7. Be3 {[%clk 0:03:02]} 7... cxd4 {[%clk 0:03:01.3]} 8. Nxd4 {[%clk
0:03:02.9]} 8... Ne5 {[%clk 0:03:01.8]} 9. Nc3 {[%clk 0:03:02.1]} 9... Be7
{[%clk 0:03:02.2]} 10. Qe2 {[%clk 0:03:01.2]} 10... Nxf3+ {[%clk 0:03:02.2]} 11.
gxf3 {[%clk 0:03:00.1]} 11... Qa5 {[%clk 0:02:28.9]} 12. Rg1 {[%clk 0:02:49.6]}
12... Bb4 {[%clk 0:01:57.3]} 13. Bd2 {[%clk 0:02:39.9]} 13... Qb6 {[%clk
0:00:58.6]} 14. Qc4 {[%clk 0:02:17.5]} 14... Bd7 {[%clk 0:00:52.1]} 15. O-O-O
{[%clk 0:02:13.7]} 15... Rc8 {[%clk 0:00:48.6]} 16. Qd3 {[%clk 0:02:13.1]} 16...
Bxc3 {[%clk 0:00:27.6]} 17. Bxc3 {[%clk 0:02:11.9]} 17... Nd5 {[%clk 0:00:28.3]}
18. Nf5 {[%clk 0:02:00]} 18... Rxc3 {[%clk 0:00:19]} 19. bxc3 {[%clk 0:01:59.4]}
19... Qc5 {[%clk 0:00:17.8]} 20. Nxg7+ {[%clk 0:01:39.5]} 20... Kd8 {[%clk
0:00:17.3]} 21. c4 {[%clk 0:01:38.1]} 21... Nb6 {[%clk 0:00:17.5]} 22. Qd4
{[%clk 0:01:12.9]} 22... Qa3+ {[%clk 0:00:17.3]} 23. Kb1 {[%clk 0:01:10.2]}
23... Kc8 {[%clk 0:00:16.7]} 24. c5 {[%clk 0:01:00.7]} 24... Nd5 {[%clk
0:00:16.3]} 25. Rd3 {[%clk 0:00:57.2]} 25... Qb4+ {[%clk 0:00:15.7]} 26. Rb3
{[%clk 0:00:57]} 26... Qxd4 {[%clk 0:00:15.6]} 0-1

[Event "Early-Titled-Tuesday-Blitz-September-12-2023"]
[Site "Chess.com"]
[Date "2023.09.12"]
[Round "7"]
[White "KVAIDAN"]
[Black "MANOJ_MISHRA123"]
[Result "0-1"]
[WhiteElo "2278"]
[BlackElo "2225"]
[TimeControl "180+1"]
[EndTime "9:16:51 PDT"]
[Termination "MANOJ_MISHRA123 won by checkmate"]

1. f4 {[%clk 0:03:00]} 1... d5 {[%clk 0:02:58.2]} 2. Nf3 {[%clk 0:03:00]} 2...
g6 {[%clk 0:02:55.8]} 3. e3 {[%clk 0:02:59.3]} 3... Bg4 {[%clk 0:02:55.1]} 4.
Be2 {[%clk 0:02:59.6]} 4... Bg7 {[%clk 0:02:54.7]} 5. O-O {[%clk 0:02:59.8]}
5... Nf6 {[%clk 0:02:53]} 6. d3 {[%clk 0:02:59.2]} 6... Nbd7 {[%clk 0:02:52]} 7.
Ne5 {[%clk 0:02:58.2]} 7... Bxe2 {[%clk 0:02:51.2]} 8. Qxe2 {[%clk 0:02:58.7]}
8... O-O {[%clk 0:02:51.9]} 9. Nd2 {[%clk 0:02:58.1]} 9... Nxe5 {[%clk 0:02:51]}
10. fxe5 {[%clk 0:02:58.2]} 10... Nd7 {[%clk 0:02:51.1]} 11. d4 {[%clk
0:02:58.8]} 11... c5 {[%clk 0:02:50.4]} 12. c4 {[%clk 0:02:56.9]} 12... cxd4
{[%clk 0:02:46.6]} 13. exd4 {[%clk 0:02:57]} 13... dxc4 {[%clk 0:02:47.1]} 14.
Nxc4 {[%clk 0:02:57.1]} 14... Nb6 {[%clk 0:02:39.6]} 15. Nxb6 {[%clk 0:02:56.5]}
15... Qxb6 {[%clk 0:02:39.4]} 16. Be3 {[%clk 0:02:56.7]} 16... Qc6 {[%clk
0:02:31.9]} 17. Rac1 {[%clk 0:02:54.5]} 17... Qd7 {[%clk 0:02:30.8]} 18. b4
{[%clk 0:02:50.3]} 18... Rac8 {[%clk 0:02:28.6]} 19. Rc4 {[%clk 0:02:40.2]}
19... Rxc4 {[%clk 0:02:24]} 20. Qxc4 {[%clk 0:02:40]} 20... b5 {[%clk
0:02:19.8]} 21. Qb3 {[%clk 0:02:31.1]} 21... e6 {[%clk 0:02:18.7]} 22. Rc1
{[%clk 0:02:31.2]} 22... Rc8 {[%clk 0:02:18.6]} 23. Rc5 {[%clk 0:02:31.6]} 23...
Bf8 {[%clk 0:02:11.8]} 24. Rc3 {[%clk 0:02:26.4]} 24... Rxc3 {[%clk 0:02:06]}
25. Qxc3 {[%clk 0:02:26.5]} 25... Qd5 {[%clk 0:01:42.4]} 26. a3 {[%clk
0:02:15.9]} 26... Qa2 {[%clk 0:01:28.5]} 27. h3 {[%clk 0:02:12.1]} 27... h5
{[%clk 0:01:18.2]} 28. Bg5 {[%clk 0:02:04.9]} 28... Qb1+ {[%clk 0:01:05.1]} 29.
Kh2 {[%clk 0:02:04.7]} 29... Qf5 {[%clk 0:01:02.5]} 30. Bf6 {[%clk 0:02:00.6]}
30... Qf4+ {[%clk 0:01:01.4]} 31. Kg1 {[%clk 0:01:53.6]} 31... h4 {[%clk
0:00:59]} 32. Qd3 {[%clk 0:01:34.4]} 32... a6 {[%clk 0:00:55.5]} 33. Bd8 {[%clk
0:01:32.8]} 33... Bh6 {[%clk 0:00:54.7]} 34. Bb6 {[%clk 0:01:24.7]} 34... Qc1+
{[%clk 0:00:51.9]} 35. Kf2 {[%clk 0:01:20.9]} 35... Bf4 {[%clk 0:00:44.3]} 36.
Kf3 {[%clk 0:01:17.7]} 36... Bg3 {[%clk 0:00:41.9]} 37. Qe3 {[%clk 0:01:10.6]}
37... Qf1+ {[%clk 0:00:38.1]} 38. Kg4 {[%clk 0:01:06.3]} 38... Qf5# {[%clk
0:00:37.5]} 0-1

[Event "Early-Titled-Tuesday-Blitz-September-12-2023"]
[Site "Chess.com"]
[Date "2023.09.12"]
[Round "7"]
[White "karinachess1"]
[Black "baki83"]
[Result "0-1"]
[WhiteElo "2608"]
[BlackElo "2810"]
[TimeControl "180+1"]
[EndTime "9:16:53 PDT"]
[Termination "baki83 won by resignation"]

1. d4 {[%clk 0:03:00.9]} 1... d5 {[%clk 0:03:00]} 2. c4 {[%clk 0:03:00.7]} 2...
e6 {[%clk 0:03:00.1]} 3. Nc3 {[%clk 0:03:00.5]} 3... Be7 {[%clk 0:02:59.7]} 4.
cxd5 {[%clk 0:02:59.8]} 4... exd5 {[%clk 0:03:00.6]} 5. Bf4 {[%clk 0:02:59.5]}
5... c6 {[%clk 0:03:00.9]} 6. e3 {[%clk 0:02:59.5]} 6... Bf5 {[%clk 0:03:00.9]}
7. Bd3 {[%clk 0:02:34.3]} 7... Bg6 {[%clk 0:02:56.7]} 8. Nge2 {[%clk 0:02:31.4]}
8... Nd7 {[%clk 0:02:55.9]} 9. O-O {[%clk 0:02:28.4]} 9... Ngf6 {[%clk
0:02:53.4]} 10. h3 {[%clk 0:02:28.9]} 10... O-O {[%clk 0:02:53.2]} 11. Rb1
{[%clk 0:02:24.6]} 11... a5 {[%clk 0:02:52.1]} 12. a3 {[%clk 0:02:24.2]} 12...
Re8 {[%clk 0:02:51.7]} 13. Bxg6 {[%clk 0:02:22.6]} 13... hxg6 {[%clk 0:02:51.3]}
14. Qd3 {[%clk 0:02:13.8]} 14... a4 {[%clk 0:02:45.4]} 15. Rbe1 {[%clk
0:02:09.5]} 15... Nb6 {[%clk 0:02:43.6]} 16. Nd1 {[%clk 0:01:39.6]} 16... Nc4
{[%clk 0:02:38.6]} 17. Nec3 {[%clk 0:01:23.8]} 17... Bd6 {[%clk 0:02:20.8]} 18.
Bxd6 {[%clk 0:01:18.1]} 18... Nxd6 {[%clk 0:02:20.5]} 19. Qc2 {[%clk 0:01:09.5]}
19... b5 {[%clk 0:02:19.2]} 20. Na2 {[%clk 0:01:09.6]} 20... Nc4 {[%clk
0:02:17]} 21. Nb4 {[%clk 0:01:09.3]} 21... Qd6 {[%clk 0:02:13.9]} 22. Nd3 {[%clk
0:01:01.1]} 22... Ne4 {[%clk 0:02:12.7]} 23. Re2 {[%clk 0:00:53.4]} 23... g5
{[%clk 0:01:47.9]} 24. Nc3 {[%clk 0:00:53.4]} 24... Nf6 {[%clk 0:01:47.5]} 25.
Nc5 {[%clk 0:00:48.3]} 25... g6 {[%clk 0:01:46]} 26. Rfe1 {[%clk 0:00:45.7]}
26... Kg7 {[%clk 0:01:45]} 27. Rd1 {[%clk 0:00:25.7]} 27... g4 {[%clk
0:01:43.5]} 28. hxg4 {[%clk 0:00:19.8]} 28... Nxg4 {[%clk 0:01:40.4]} 29. g3
{[%clk 0:00:20.3]} 29... Ngxe3 {[%clk 0:01:25.2]} 30. Qd3 {[%clk 0:00:15.4]}
30... Nxd1 {[%clk 0:01:22.8]} 31. Nxd1 {[%clk 0:00:15.7]} 31... Rxe2 {[%clk
0:01:21]} 32. Qxe2 {[%clk 0:00:16.6]} 32... Qf6 {[%clk 0:01:19.2]} 33. Qd3
{[%clk 0:00:14.9]} 33... Re8 {[%clk 0:01:17.6]} 34. Kg2 {[%clk 0:00:14.9]} 34...
Re1 {[%clk 0:01:16.4]} 35. Nd7 {[%clk 0:00:12.9]} 35... Qe6 {[%clk 0:01:12.4]}
36. Nc5 {[%clk 0:00:13.1]} 36... Qf5 {[%clk 0:01:11.5]} 0-1

[Event "Early-Titled-Tuesday-Blitz-September-12-2023"]
[Site "Chess.com"]
[Date "2023.09.12"]
[Round "7"]
[White "Irishchessman16"]
[Black "IwkooO"]
[Result "0-1"]
[WhiteElo "2485"]
[BlackElo "2641"]
[TimeControl "180+1"]
[EndTime "9:16:53 PDT"]
[Termination "IwkooO won by resignation"]

1. d4 {[%clk 0:02:03.8]} 1... e6 {[%clk 0:03:00.9]} 2. Bf4 {[%clk 0:02:01.2]}
2... b6 {[%clk 0:02:59.7]} 3. e4 {[%clk 0:01:56.5]} 3... Bb7 {[%clk 0:02:59.9]}
4. f3 {[%clk 0:01:54.8]} 4... d6 {[%clk 0:02:58.5]} 5. Nc3 {[%clk 0:01:51.6]}
5... g6 {[%clk 0:02:59.1]} 6. Qd2 {[%clk 0:01:51.3]} 6... Bg7 {[%clk 0:02:59.4]}
7. O-O-O {[%clk 0:01:51]} 7... h6 {[%clk 0:02:59.3]} 8. h4 {[%clk 0:01:47.2]}
8... Ne7 {[%clk 0:02:57.4]} 9. Bb5+ {[%clk 0:01:43.7]} 9... Nd7 {[%clk
0:02:57.4]} 10. Nge2 {[%clk 0:01:38.7]} 10... a6 {[%clk 0:02:57.8]} 11. Bd3
{[%clk 0:01:38.4]} 11... b5 {[%clk 0:02:52.1]} 12. a3 {[%clk 0:01:35.7]} 12...
e5 {[%clk 0:02:51.3]} 13. Be3 {[%clk 0:01:34.3]} 13... c5 {[%clk 0:02:41.9]} 14.
dxc5 {[%clk 0:01:32.6]} 14... Nxc5 {[%clk 0:02:42.8]} 15. Bxb5+ {[%clk
0:01:25.7]} 15... axb5 {[%clk 0:02:40.1]} 16. Nxb5 {[%clk 0:01:26.3]} 16... O-O
{[%clk 0:02:19.9]} 17. Nxd6 {[%clk 0:01:24.2]} 17... Qc7 {[%clk 0:01:49.1]} 18.
Bxc5 {[%clk 0:01:22.7]} 18... Ba6 {[%clk 0:01:42.9]} 19. Bb4 {[%clk 0:01:14.4]}
19... Rfd8 {[%clk 0:01:41.3]} 20. Nc3 {[%clk 0:01:10.5]} 20... Nc6 {[%clk
0:01:39.8]} 21. Nd5 {[%clk 0:01:07.1]} 21... Qb8 {[%clk 0:01:40]} 22. Ne3 {[%clk
0:00:32.5]} 22... Bf8 {[%clk 0:01:38.5]} 23. Bc5 {[%clk 0:00:26.3]} 23... Nd4
{[%clk 0:01:38.4]} 24. Bxd4 {[%clk 0:00:16.4]} 24... exd4 {[%clk 0:01:37.5]} 25.
Nd5 {[%clk 0:00:14.9]} 25... Rxd6 {[%clk 0:01:34.5]} 26. Qxd4 {[%clk 0:00:14.8]}
26... Bg7 {[%clk 0:01:34.8]} 27. Qb4 {[%clk 0:00:14.6]} 27... Qxb4 {[%clk
0:01:27.2]} 28. Nxb4 {[%clk 0:00:15.5]} 28... Rb6 {[%clk 0:01:26.5]} 29. c3
{[%clk 0:00:15.5]} 29... Bc4 {[%clk 0:01:26.4]} 30. Rd7 {[%clk 0:00:15.3]} 30...
Be6 {[%clk 0:01:26.2]} 31. Rd2 {[%clk 0:00:14.1]} 31... Be5 {[%clk 0:01:25.9]}
32. Kc2 {[%clk 0:00:14.1]} 32... Bf4 {[%clk 0:01:23.1]} 33. Re2 {[%clk
0:00:12.8]} 33... Bc4 {[%clk 0:01:22.9]} 34. Ree1 {[%clk 0:00:13.1]} 34... Rd6
{[%clk 0:01:18.4]} 35. Rd1 {[%clk 0:00:13]} 35... Rad8 {[%clk 0:01:16.2]} 36. b3
{[%clk 0:00:08.4]} 36... Bxb3+ {[%clk 0:01:15.9]} 37. Kxb3 {[%clk 0:00:07.7]}
37... Rxd1 {[%clk 0:01:16.8]} 0-1

[Event "Early-Titled-Tuesday-Blitz-September-12-2023"]
[Site "Chess.com"]
[Date "2023.09.12"]
[Round "7"]
[White "valemava"]
[Black "NowInChess"]
[Result "1-0"]
[WhiteElo "2300"]
[BlackElo "2246"]
[TimeControl "180+1"]
[EndTime "9:17:01 PDT"]
[Termination "valemava won on time"]

1. c4 {[%clk 0:03:00.9]} 1... e5 {[%clk 0:02:59.6]} 2. a3 {[%clk 0:03:00.7]}
2... g6 {[%clk 0:02:51.1]} 3. b4 {[%clk 0:03:00.3]} 3... Bg7 {[%clk 0:02:51.4]}
4. Bb2 {[%clk 0:03:00.6]} 4... d6 {[%clk 0:02:50.8]} 5. Nf3 {[%clk 0:02:59.9]}
5... f5 {[%clk 0:02:50.5]} 6. e3 {[%clk 0:02:58.4]} 6... Nf6 {[%clk 0:02:50.9]}
7. d4 {[%clk 0:02:58.3]} 7... O-O {[%clk 0:02:40.9]} 8. dxe5 {[%clk 0:02:56.5]}
8... Ng4 {[%clk 0:02:40.8]} 9. Qb3 {[%clk 0:02:50]} 9... Nxe5 {[%clk 0:02:26]}
10. Nbd2 {[%clk 0:02:47]} 10... Be6 {[%clk 0:02:20.1]} 11. Nd4 {[%clk
0:02:42.9]} 11... Bf7 {[%clk 0:02:14]} 12. Qc2 {[%clk 0:02:38.4]} 12... Nbc6
{[%clk 0:01:59.8]} 13. b5 {[%clk 0:02:35.5]} 13... Nxd4 {[%clk 0:01:50]} 14.
Bxd4 {[%clk 0:02:32.8]} 14... Qe7 {[%clk 0:01:42.4]} 15. Be2 {[%clk 0:02:32.1]}
15... a5 {[%clk 0:01:33.1]} 16. O-O {[%clk 0:02:30.8]} 16... b6 {[%clk
0:01:32.4]} 17. f4 {[%clk 0:02:25]} 17... Nd7 {[%clk 0:01:19.8]} 18. Bf3 {[%clk
0:02:24.1]} 18... Rae8 {[%clk 0:01:05.5]} 19. Rae1 {[%clk 0:02:23.1]} 19... Bxd4
{[%clk 0:00:59.2]} 20. exd4 {[%clk 0:02:21]} 20... Qxe1 {[%clk 0:01:00.1]} 21.
Rxe1 {[%clk 0:02:20.8]} 21... Rxe1+ {[%clk 0:01:00.6]} 22. Kf2 {[%clk
0:02:21.1]} 22... Rfe8 {[%clk 0:00:59.2]} 23. Bc6 {[%clk 0:02:12.6]} 23... R8e2+
{[%clk 0:00:53.2]} 24. Kg3 {[%clk 0:02:12.7]} 24... Nf6 {[%clk 0:00:50]} 25. Bf3
{[%clk 0:02:09.8]} 25... Ne4+ {[%clk 0:00:28.6]} 26. Bxe4 {[%clk 0:02:07.6]}
26... fxe4 {[%clk 0:00:28.5]} 27. c5 {[%clk 0:01:55.3]} 27... e3 {[%clk
0:00:22.9]} 28. cxb6 {[%clk 0:01:55.2]} 28... cxb6 {[%clk 0:00:15.5]} 29. Qc8+
{[%clk 0:01:50]} 29... Kg7 {[%clk 0:00:16]} 30. Nf3 {[%clk 0:01:49.5]} 30... Rf1
{[%clk 0:00:04.8]} 31. d5 {[%clk 0:01:46.5]} 31... Rff2 {[%clk 0:00:04]} 32.
Qc3+ {[%clk 0:01:45.6]} 32... Kf8 {[%clk 0:00:03.2]} 33. Qh8+ {[%clk 0:01:44.4]}
33... Ke7 {[%clk 0:00:02.8]} 34. Qxh7 {[%clk 0:01:41.5]} 34... Rxg2+ {[%clk
0:00:02.4]} 35. Kh3 {[%clk 0:01:41.2]} 35... Ref2 {[%clk 0:00:01.9]} 36. Qh4+
{[%clk 0:01:41.2]} 36... Ke8 {[%clk 0:00:01.1]} 37. Qg4 {[%clk 0:01:41.3]} 37...
Ke7 {[%clk 0:00:01.9]} 38. Qg5+ {[%clk 0:01:41.3]} 38... Kf8 {[%clk 0:00:01.8]}
39. Qd8+ {[%clk 0:01:37.3]} 39... Kg7 {[%clk 0:00:02]} 40. Qxd6 {[%clk
0:01:34.2]} 40... e2 {[%clk 0:00:02.2]} 41. Qe5+ {[%clk 0:01:33.5]} 41... Kg8
{[%clk 0:00:02.2]} 42. Ng5 {[%clk 0:01:33.7]} 42... Rxg5 {[%clk 0:00:01.6]} 43.
fxg5 {[%clk 0:01:33.2]} 43... Rf3+ {[%clk 0:00:01.3]} 44. Kg4 {[%clk 0:01:32.9]}
44... Rf2 {[%clk 0:00:01.6]} 45. Kg3 {[%clk 0:01:31.3]} 1-0